bitfinex-derivatives/quotes_BTCF0:USTF0_20250924
["timestamp","ask_amount","ask_price","bid_price","bid_amount"]
[1758705432585,1.50747996,112610.0,112600.0,0.03581]
[1758705438083,1.2575458,112610.0,112600.0,0.03581]
[1758705438286,1.50747996,112610.0,112600.0,0.03581]
[1758705440593,1.50747996,112610.0,112600.0,0.1245937]
[1758705441293,1.2575458,112610.0,112600.0,0.1245937]
[1758705443091,1.2575458,112610.0,112600.0,0.28395821]
[1758705450804,1.50747996,112610.0,112600.0,0.28395821]
[1758705455409,1.50747996,112610.0,112600.0,0.17221451]
[1758705455708,1.50747996,112610.0,112600.0,0.26099821]
[1758705455909,1.50747996,112610.0,112600.0,0.28417821]
[1758705458511,1.86827996,112610.0,112600.0,0.28417821]
[1758705461616,1.86827996,112610.0,112600.0,0.1248137]
[1758705464513,1.89952151,112610.0,112600.0,0.1248137]
[1758705465319,1.6183458,112610.0,112600.0,0.1248137]
[1758705465512,1.89952151,112610.0,112600.0,0.1248137]
[1758705468918,1.89952151,112610.0,112600.0,0.1016337]
[1758705469618,1.89952151,112610.0,112600.0,0.1241537]
[1758705472021,1.89952151,112610.0,112600.0,0.28351821]
[1758705472524,1.89952151,112610.0,112600.0,0.26099821]
[1758705473120,1.89952151,112610.0,112600.0,0.28351821]
[1758705475225,1.89952151,112610.0,112600.0,0.1241537]
[1758705476022,1.17792151,112610.0,112600.0,0.1241537]
[1758705476221,1.89952151,112610.0,112600.0,0.1241537]
[1758705482331,1.89952151,112610.0,112600.0,0.01285]
[1758705482530,1.89952151,112610.0,112590.0,0.26100021]
[1758705482531,0.0945937,112600.0,112590.0,0.15936451]
[1758705482732,0.0945937,112600.0,112580.0,0.03429]
[1758705482733,0.0946015,112590.0,112580.0,0.03429]
[1758705482928,1.81963292,112590.0,112580.0,0.01303]
[1758705483226,1.53845721,112590.0,112580.0,0.01303]
[1758705483430,1.53845721,112590.0,112580.0,0.1230894]
[1758705483632,1.81963292,112590.0,112580.0,0.1230894]
[1758705483831,1.81963292,112590.0,112580.0,0.03429]
[1758705484031,1.53845721,112590.0,112580.0,0.03429]
[1758705484333,1.53845721,112590.0,112580.0,0.1230894]
[1758705484728,1.53845721,112590.0,112580.0,0.1240894]
[1758705486137,1.53845721,112590.0,112580.0,0.1330894]
[1758705492547,1.2572815,112590.0,112580.0,0.1330894]
[1758705492741,1.53845721,112590.0,112580.0,0.1330894]
[1758705500452,1.89925721,112590.0,112580.0,0.1330894]
[1758705502343,1.6180815,112590.0,112580.0,0.1330894]
[1758705502542,1.52929,112590.0,112580.0,0.41426511]
[1758705502847,1.89925721,112590.0,112580.0,0.41426511]
[1758705506843,1.6180815,112590.0,112580.0,0.41426511]
[1758705507039,1.89925721,112590.0,112580.0,0.41426511]
[1758705511851,1.6180815,112590.0,112580.0,0.41426511]
[1758705512057,1.89925721,112590.0,112580.0,0.41426511]
[1758705512555,1.89925721,112590.0,112580.0,0.57362962]
[1758705513253,1.89925721,112590.0,112580.0,0.41426511]
[1758705526567,1.6180815,112590.0,112580.0,0.1330894]
[1758705529072,1.2572815,112590.0,112580.0,0.1330894]
[1758705534168,1.2572815,112590.0,112580.0,0.29245391]
[1758705535971,0.8964815,112590.0,112580.0,0.29245391]
[1758705536170,1.2572815,112590.0,112580.0,0.29245391]
[1758705540676,1.2572815,112590.0,112580.0,0.1330894]
[1758705542177,1.2572815,112590.0,112580.0,0.54245044]
[1758705542480,0.8964815,112590.0,112580.0,0.69245391]
[1758705542869,0.0946015,112590.0,112580.0,0.69245391]
[1758705543072,0.0946015,112590.0,112580.0,0.5330894]
[1758705545476,0.0946015,112590.0,112580.0,0.78308593]
[1758705547570,0.00581,112590.0,112580.0,0.78308593]
[1758705549779,0.00581,112590.0,112580.0,0.5330894]
[1758705551273,0.00581,112590.0,112580.0,0.5320894]
[1758705551472,0.00581,112590.0,112580.0,0.5360894]
[1758705553078,0.0946016,112590.0,112580.0,0.5360894]
[1758705553473,0.0946016,112590.0,112580.0,0.5270894]
[1758705553668,0.0946016,112590.0,112580.0,0.78708593]
[1758705553867,0.0946016,112590.0,112580.0,0.78808593]
[1758705554078,0.0946016,112590.0,112580.0,0.77408593]
[1758705554578,0.00581,112590.0,112580.0,0.77408593]
[1758705558981,0.00581,112590.0,112580.0,1.57600593]
[1758705559181,1.50735023,112600.0,112590.0,0.1245916]
[1758705560583,1.50835023,112600.0,112590.0,0.1245916]
[1758705561283,1.2583537,112600.0,112590.0,0.1245916]
[1758705566584,1.2583537,112600.0,112590.0,0.37458813]
[1758705566790,1.2583537,112600.0,112590.0,0.1245916]
[1758705573494,0.001,112600.0,112590.0,0.77458813]
[1758705573700,0.36661,112630.0,112620.0,0.1245679]
[1758705573997,0.36661,112630.0,112620.0,0.37456443]
[1758705575002,0.36761,112630.0,112620.0,0.37456443]
[1758705575602,0.3618,112630.0,112620.0,0.77456443]
[1758705575796,0.3618,112630.0,112620.0,1.13536443]
[1758705575797,0.001,112630.0,112620.0,1.13536443]
[1758705576701,0.001,112630.0,112620.0,1.14336443]
[1758705577507,0.0945627,112640.0,112630.0,0.12456]
[1758705577708,0.0945627,112640.0,112630.0,0.37455653]
[1758705578010,0.0945627,112640.0,112630.0,0.12456]
[1758705578209,0.0945627,112640.0,112630.0,0.37455653]
[1758705578904,0.0945627,112640.0,112630.0,0.37555653]
[1758705579411,0.0945627,112640.0,112630.0,0.37755653]
[1758705582105,0.0945627,112640.0,112630.0,0.12756]
[1758705582403,0.0945627,112640.0,112630.0,0.37755653]
[1758705584711,0.00581,112640.0,112630.0,0.37755653]
[1758705586613,0.00581,112640.0,112630.0,0.40850873]
[1758705588713,0.0945621,112640.0,112630.0,0.40850873]
[1758705589716,0.73631083,112640.0,112630.0,0.40850873]
[1758705591513,1.13631083,112640.0,112630.0,0.003]
[1758705592817,1.13631083,112640.0,112630.0,0.002]
[1758705593413,0.0945779,112620.0,112610.0,0.03438]
[1758705593620,1.09712663,112620.0,112610.0,0.31532873]
[1758705593917,0.8161779,112620.0,112610.0,0.31532873]
[1758705594106,1.09712663,112620.0,112610.0,0.31532873]
[1758705594708,1.09712663,112620.0,112610.0,0.32332873]
[1758705595421,1.09712663,112620.0,112610.0,0.32532873]
[1758705597023,1.09712663,112620.0,112610.0,0.32432873]
[1758705597213,1.09712663,112620.0,112610.0,0.31832873]
[1758705601222,0.8161779,112620.0,112610.0,0.31832873]
[1758705601424,1.09712663,112620.0,112610.0,0.31832873]
[1758705602314,1.09712663,112620.0,112610.0,0.01595]
[1758705602521,1.09712663,112620.0,112610.0,0.003]
[1758705602718,1.77807536,112620.0,112610.0,0.003]
[1758705603928,1.77907536,112620.0,112610.0,0.002]
[1758705604223,0.0887837,112600.0,112590.0,0.4939051]
[1758705604431,0.0887837,112600.0,112590.0,0.40474873]
[1758705604432,0.4553937,112600.0,112590.0,0.40474873]
[1758705605628,0.4553937,112600.0,112590.0,0.5171251]
[1758705605923,0.4553937,112600.0,112590.0,0.5191251]
[1758705611337,0.4553937,112600.0,112590.0,0.23817637]
[1758705611631,0.4553937,112600.0,112590.0,0.5191251]
[1758705612530,0.4553937,112600.0,112590.0,0.40774873]
[1758705617333,0.4553937,112600.0,112590.0,0.5191251]
[1758705619239,0.4553937,112600.0,112590.0,0.40774873]
[1758705620331,0.4553937,112600.0,112590.0,0.51939915]
[1758705621128,0.4553937,112600.0,112590.0,0.43060915]
[1758705622730,0.73634243,112600.0,112590.0,0.31895873]
[1758705623830,1.09814243,112600.0,112590.0,0.31595873]
[1758705624135,1.09814243,112600.0,112590.0,0.03501]
[1758705624443,1.09814243,112600.0,112590.0,0.31595873]
[1758705627441,1.10723891,112600.0,112590.0,0.31595873]
[1758705629036,0.8171937,112600.0,112590.0,0.31595873]
[1758705631540,0.8171937,112600.0,112590.0,0.42760915]
[1758705635337,1.09814243,112600.0,112590.0,0.12444042]
[1758705635543,1.09814243,112600.0,112590.0,0.40538915]
[1758705635734,1.09814243,112600.0,112590.0,0.42737915]
[1758705636136,0.8171937,112600.0,112590.0,0.42737915]
[1758705636339,1.09814243,112600.0,112590.0,0.42737915]
[1758705638447,1.09814243,112600.0,112590.0,0.14643042]
[1758705638644,1.09814243,112600.0,112590.0,0.42737915]
[1758705639047,1.09814243,112600.0,112590.0,0.31572873]
[1758705639750,0.8171937,112600.0,112590.0,0.31572873]
[1758705639952,1.09814243,112600.0,112590.0,0.31572873]
[1758705648665,0.8171937,112600.0,112590.0,0.14643042]
[1758705650767,0.8171937,112600.0,112590.0,0.03478]
[1758705660774,0.72841,112600.0,112590.0,0.19460631]
[1758705662174,0.8171937,112600.0,112590.0,0.19460631]
[1758705671180,0.8171937,112600.0,112590.0,0.03478]
[1758705681692,0.0955937,112600.0,112590.0,0.03478]
[1758705681886,0.8171937,112600.0,112590.0,0.03478]
[1758705695202,0.8171937,112600.0,112590.0,0.19460631]
[1758705695900,0.8171937,112600.0,112590.0,0.03478]
[1758705697503,0.8171937,112600.0,112590.0,0.19460631]
[1758705698404,0.8171937,112600.0,112590.0,0.03478]
[1758705699913,0.8171937,112600.0,112590.0,0.19460631]
[1758705703206,0.8171937,112600.0,112590.0,0.03478]
[1758705708815,0.8171937,112600.0,112590.0,0.14670798]
[1758705710620,0.8171937,112600.0,112590.0,0.42790145]
[1758705710621,1.09838717,112600.0,112590.0,0.42790145]
[1758705712821,1.09838717,112600.0,112590.0,0.31597347]
[1758705715121,1.09838717,112600.0,112590.0,0.42786849]
[1758705717420,1.09838717,112600.0,112590.0,0.31597347]
[1758705723522,1.77958064,112600.0,112580.0,0.12468502]
[1758705723713,1.81962844,112590.0,112580.0,0.12468502]
[1758705723914,0.0946094,112580.0,112570.0,0.31732347]
[1758705724217,0.73660287,112580.0,112570.0,0.47714978]
[1758705725223,0.73660287,112580.0,112570.0,0.47914978]
[1758705725925,0.73560287,112580.0,112570.0,0.47914978]
[1758705726727,0.73560287,112580.0,112570.0,0.48014978]
[1758705727122,0.73560287,112580.0,112570.0,0.59197009]
[1758705727322,0.73560287,112580.0,112570.0,0.43214378]
[1758705733032,0.4485994,112580.0,112570.0,0.92095108]
[1758705733233,0.4544094,112580.0,112570.0,0.83214378]
[1758705733540,0.73560287,112580.0,112570.0,0.32032347]
[1758705737234,0.73560287,112580.0,112570.0,0.40913077]
[1758705738635,0.73560287,112580.0,112570.0,0.32032347]
[1758705740139,0.73560287,112580.0,112570.0,0.40913077]
[1758705741941,0.73560287,112580.0,112570.0,0.32032347]
[1758705744244,0.73560287,112580.0,112570.0,0.40913077]
[1758705744843,0.73560287,112580.0,112570.0,0.56895708]
[1758705745240,0.4544094,112580.0,112570.0,0.68073077]
[1758705745444,0.73560287,112580.0,112570.0,0.68073077]
[1758705745645,0.73560287,112580.0,112570.0,0.52090446]
[1758705748145,0.36661,112580.0,112570.0,0.52090446]
[1758705748448,0.0887994,112580.0,112570.0,0.80913077]
[1758705748845,0.0887994,112580.0,112570.0,0.96895708]
[1758705749150,0.0946094,112580.0,112570.0,0.96895708]
[1758705753649,0.0946094,112580.0,112570.0,1.08082482]
[1758705753845,0.0946094,112580.0,112570.0,0.92099851]
[1758705754553,0.0887994,112580.0,112570.0,0.92099851]
[1758705755055,0.0946094,112580.0,112570.0,0.92099851]
[1758705757253,0.0887994,112580.0,112570.0,0.92099851]
[1758705759456,0.0887994,112580.0,112570.0,0.52099851]
[1758705763656,0.4554015,112590.0,112580.0,0.1241894]
[1758705763850,0.4554015,112590.0,112580.0,0.51723053]
[1758705765059,0.4554015,112590.0,112580.0,0.40538287]
[1758705766458,0.4564015,112590.0,112580.0,0.40538287]
[1758705772564,0.4564015,112590.0,112580.0,0.3741475]
[1758705775376,0.0956015,112590.0,112580.0,0.3741475]
[1758705775564,0.4564015,112590.0,112580.0,0.3741475]
[1758705776376,0.0956015,112590.0,112580.0,0.3741475]
[1758705776575,0.4564015,112590.0,112580.0,0.3741475]
[1758705777379,0.4554015,112590.0,112580.0,0.3741475]
[1758705777577,0.4554015,112590.0,112580.0,0.3871475]
[1758705777972,0.4554015,112590.0,112580.0,0.3811475]
[1758705778673,0.4554015,112590.0,112580.0,0.54097381]
[1758705778973,0.4554015,112590.0,112580.0,0.53897381]
[1758705779172,0.4554015,112590.0,112580.0,0.53997381]
[1758705781277,0.4554015,112590.0,112580.0,0.20121631]
[1758705781579,0.4554015,112590.0,112580.0,0.45117441]
[1758705781779,0.4554015,112590.0,112580.0,0.53997381]
[1758705783481,0.4554015,112590.0,112580.0,0.29001571]
[1758705783682,0.4554015,112590.0,112580.0,0.53997381]
[1758705785375,0.3608,112590.0,112580.0,0.53997381]
[1758705785971,0.4495915,112590.0,112580.0,0.53997381]
[1758705788187,0.3608,112590.0,112580.0,0.53997381]
[1758705788378,0.4495915,112590.0,112580.0,0.53997381]
[1758705789186,0.3608,112590.0,112580.0,0.53997381]
[1758705789976,1.2573995,112600.0,112590.0,0.1026215]
[1758705790183,1.2573995,112600.0,112590.0,0.3757996]
[1758705791278,1.2515895,112600.0,112590.0,0.3757996]
[1758705791481,1.2515895,112600.0,112590.0,1.1781996]
[1758705791679,0.4495895,112600.0,112590.0,1.1781996]
[1758705792086,0.4495895,112600.0,112590.0,1.18698363]
[1758705792585,0.4505895,112600.0,112590.0,1.18698363]
[1758705792985,0.0897895,112600.0,112590.0,1.18698363]
[1758705794884,0.001,112600.0,112590.0,1.18698363]
[1758705798090,0.001,112600.0,112590.0,1.34650398]
[1758705798995,0.449576,112610.0,112590.0,1.43529548]
[1758705799194,0.455386,112610.0,112600.0,0.2868381]
[1758705799391,0.455386,112610.0,112600.0,0.3575025]
[1758705799591,0.455386,112610.0,112600.0,0.4462861]
[1758705800197,0.456386,112610.0,112600.0,0.4462861]
[1758705801000,0.457386,112610.0,112600.0,0.4462861]
[1758705806403,0.457386,112610.0,112600.0,0.196328]
[1758705806604,0.457386,112610.0,112600.0,0.4462861]
[1758705815806,0.457386,112610.0,112600.0,0.60580645]
[1758705817312,0.40326244,112610.0,112600.0,0.60580645]
[1758705818909,0.40326244,112610.0,112600.0,0.4462861]
[1758705821409,0.40326244,112610.0,112600.0,0.60580645]
[1758705828818,0.457386,112610.0,112600.0,0.60580645]
[1758705832530,0.457386,112610.0,112600.0,0.6369335]
[1758705840740,0.36861,112610.0,112600.0,0.6369335]
[1758705841239,0.3628,112610.0,112600.0,0.6369335]
[1758705841535,0.002,112610.0,112600.0,0.6369335]
[1758705842343,0.002,112610.0,112600.0,0.47741315]
[1758705850152,0.002,112610.0,112600.0,0.83821315]
[1758705850645,0.3608,112620.0,112610.0,0.1231658]
[1758705850846,0.3608,112620.0,112610.0,1.4871361]
[1758705851243,0.4495617,112630.0,112620.0,0.1231579]
[1758705851448,0.4495617,112630.0,112620.0,0.6853282]
[1758705852747,0.4535617,112630.0,112620.0,0.6853282]
[1758705853654,0.4495617,112630.0,112620.0,0.6913282]
[1758705854248,0.4553717,112630.0,112620.0,0.6913282]
[1758705860255,0.4553717,112630.0,112620.0,0.6973282]
[1758705861352,0.4553717,112630.0,112620.0,0.7003282]
[1758705862057,0.4553717,112630.0,112620.0,0.6963282]
[1758705862356,0.4553717,112630.0,112620.0,0.6993282]
[1758705863660,0.4553717,112630.0,112620.0,0.1371579]
[1758705863861,0.4553717,112630.0,112620.0,0.6993282]
[1758705864362,0.0945717,112630.0,112620.0,0.6993282]
[1758705864554,0.4553717,112630.0,112620.0,0.6993282]
[1758705867462,0.4553717,112630.0,112620.0,0.1371579]
[1758705867663,0.4553717,112630.0,112620.0,0.6993282]
[1758705876970,0.4553717,112630.0,112620.0,0.1371579]
[1758705877171,0.4553717,112630.0,112620.0,0.6993282]
[1758705878670,0.4553717,112630.0,112620.0,0.85884855]
[1758705879473,0.4553717,112630.0,112620.0,0.29667825]
[1758705879772,0.4553717,112630.0,112620.0,0.85884855]
[1758705882975,0.0945717,112630.0,112620.0,0.85884855]
[1758705883279,0.4553717,112630.0,112620.0,0.85884855]
[1758705884978,0.36661,112630.0,112620.0,0.85884855]
[1758705885180,0.45537,112630.0,112620.0,0.85884855]
[1758705894691,0.45537,112630.0,112620.0,0.54642078]
[1758705897992,0.45537,112630.0,112620.0,0.38690043]
[1758705902890,0.45537,112630.0,112620.0,0.39581952]
[1758705904401,0.45537,112630.0,112620.0,0.55533987]
[1758705905891,0.3608,112630.0,112620.0,0.55533987]
[1758705906096,0.4495522,112640.0,112630.0,0.03442]
[1758705906298,0.4495522,112640.0,112630.0,1.08680253]
[1758705906598,0.36661,112640.0,112630.0,0.37292253]
[1758705907299,0.36661,112640.0,112630.0,0.37392253]
[1758705907500,0.36661,112640.0,112630.0,0.37892253]
[1758705908001,0.4553699,112640.0,112630.0,0.37892253]
[1758705913010,0.36661,112640.0,112630.0,0.37892253]
[1758705913808,0.3608,112640.0,112630.0,0.37892253]
[1758705916108,0.3608,112640.0,112630.0,0.62866506]
[1758705916307,1.2584474,112650.0,112640.0,0.1231805]
[1758705916509,1.16969,112650.0,112640.0,0.37292303]
[1758705917211,1.16388,112650.0,112640.0,0.62266556]
[1758705917908,1.16969,112650.0,112640.0,0.62266556]
[1758705919808,1.16969,112650.0,112640.0,0.37292303]
[1758705920109,0.36661,112650.0,112640.0,0.37292303]
[1758705920505,0.36661,112650.0,112640.0,0.44434339]
[1758705920706,0.36661,112650.0,112640.0,0.69408592]
[1758705924211,0.36661,112650.0,112640.0,0.44434339]
[1758705925012,0.36661,112650.0,112640.0,0.69408592]
[1758705926215,0.36661,112650.0,112640.0,0.44434339]
[1758705926910,0.4553626,112650.0,112640.0,0.44434339]
[1758705927115,0.4553626,112650.0,112640.0,0.19460086]
[1758705927311,0.4553626,112650.0,112640.0,0.44434339]
[1758705935120,0.4553626,112650.0,112640.0,0.44534339]
[1758705935311,0.4553626,112650.0,112640.0,0.35658289]
[1758705935508,1.10510513,112650.0,112640.0,0.001]
[1758705935915,1.10510513,112650.0,112640.0,0.006]
[1758705936213,0.8553626,112650.0,112640.0,0.006]
[1758705936419,0.8553626,112650.0,112640.0,0.005]
[1758705936919,0.094569,112640.0,112630.0,0.28353253]
[1758705937219,0.455369,112640.0,112630.0,0.28353253]
[1758705938120,1.257889,112640.0,112630.0,0.28353253]
[1758705938713,0.36661,112640.0,112630.0,0.37229943]
[1758705939016,0.3608,112640.0,112630.0,0.77229943]
[1758705939415,0.3608,112650.0,112640.0,0.088759]
[1758705939622,0.4553608,112650.0,112640.0,0.37272153]
[1758705941710,0.4553608,112650.0,112640.0,0.37772153]
[1758705942524,0.4553608,112650.0,112640.0,0.37872153]
[1758705943810,0.36661,112650.0,112640.0,0.37872153]
[1758705944012,0.36661,112650.0,112640.0,0.44866492]
[1758705944217,0.4553613,112650.0,112640.0,0.44866492]
[1758705944824,0.36661,112650.0,112640.0,0.44866492]
[1758705948933,0.4553616,112650.0,112640.0,0.44866492]
[1758705950529,0.4553616,112650.0,112640.0,0.44866492]
[1758705953433,0.37947,112660.0,112650.0,0.0887516]
[1758705953734,1.18776,112660.0,112650.0,0.37474413]
[1758705954529,1.18776,112660.0,112650.0,0.68672236]
[1758705954834,1.18776,112660.0,112650.0,0.1250016]
[1758705955132,0.4740242,112660.0,112650.0,0.68672236]
[1758705964240,0.4740242,112660.0,112650.0,0.68772236]
[1758705965140,0.4740242,112660.0,112650.0,0.69272236]
[1758705968538,0.4740242,112660.0,112650.0,0.70169381]
[1758705969842,0.4740242,112660.0,112650.0,0.69272236]
[1758705979046,0.4495442,112660.0,112650.0,0.69272236]
[1758705979351,0.43240687,112660.0,112650.0,0.69272236]
[1758705983751,0.43240687,112660.0,112650.0,0.85208962]
[1758705986852,0.43240687,112660.0,112650.0,0.69272236]
[1758706004155,0.43240687,112660.0,112650.0,0.1310016]
[1758706004360,0.43240687,112660.0,112650.0,0.69272236]
[1758706008667,0.71326725,112660.0,112650.0,0.04225]
[1758706009272,0.71326725,112660.0,112650.0,0.32311038]
[1758706009880,0.71326725,112660.0,112650.0,0.31711038]
[1758706011776,0.71326725,112660.0,112650.0,0.03625]
[1758706011976,0.71326725,112660.0,112650.0,0.31711038]
[1758706016582,0.43240687,112660.0,112650.0,0.03625]
[1758706016881,0.0887518,112650.0,112640.0,0.10637339]
[1758706017079,1.50158347,112650.0,112640.0,0.03643]
[1758706017286,1.50158347,112650.0,112640.0,0.01319]
[1758706018484,1.50158347,112650.0,112640.0,0.01819]
[1758706019076,1.50158347,112650.0,112640.0,0.01919]
[1758706019587,1.50158347,112650.0,112640.0,0.01419]
[1758706019789,1.50158347,112650.0,112640.0,0.01319]
[1758706021086,0.0887596,112640.0,112620.0,0.17227726]
[1758706021383,0.0887754,112620.0,112610.0,0.03622]
[1758706021583,0.4495754,112620.0,112610.0,0.03622]
[1758706022384,0.4355754,112620.0,112610.0,0.03622]
[1758706023082,0.4355754,112620.0,112610.0,0.04722]
[1758706023289,0.4355754,112620.0,112610.0,0.05022]
[1758706023691,0.68528707,112620.0,112610.0,0.02712]
[1758706023989,0.69414046,112620.0,112610.0,0.014]
[1758706028394,0.68528707,112620.0,112610.0,0.014]
[1758706029785,0.088784,112610.0,112600.0,0.0366]
[1758706029991,1.252504,112610.0,112600.0,0.0366]
[1758706031581,1.261504,112610.0,112600.0,0.0366]
[1758706031781,1.262504,112610.0,112600.0,0.0366]
[1758706036896,1.623304,112610.0,112600.0,0.0366]
[1758706041896,1.623304,112610.0,112600.0,0.1253919]
[1758706042792,0.901704,112610.0,112600.0,0.1253919]
[1758706042992,1.623304,112610.0,112600.0,0.1253919]
[1758706045700,1.623304,112610.0,112600.0,0.37510357]
[1758706046099,1.623304,112610.0,112600.0,0.1253919]
[1758706046300,1.623304,112610.0,112600.0,0.37510357]
[1758706046800,1.623304,112610.0,112600.0,0.1253919]
[1758706047894,0.901704,112610.0,112600.0,0.1253919]
[1758706048095,1.623304,112610.0,112600.0,0.1253919]
[1758706050902,1.623304,112610.0,112600.0,0.0366]
[1758706051098,0.0887919,112600.0,112590.0,0.1235636]
[1758706051299,0.4495919,112600.0,112590.0,0.1235636]
[1758706051498,0.4495919,112600.0,112590.0,0.03477]
[1758706052005,0.4495919,112600.0,112590.0,0.28448167]
[1758706052192,0.4525919,112600.0,112590.0,0.28448167]
[1758706052395,0.4525919,112600.0,112590.0,0.03577]
[1758706053002,0.4525919,112600.0,112590.0,0.1245698]
[1758706054501,0.4525919,112600.0,112590.0,0.03577]
[1758706056002,0.4535919,112600.0,112590.0,0.03477]
[1758706057308,0.4575919,112600.0,112590.0,0.03477]
[1758706061706,0.4575919,112600.0,112590.0,0.1235692]
[1758706063308,0.4575919,112600.0,112590.0,0.03477]
[1758706063698,0.4575919,112600.0,112590.0,0.0135]
[1758706063901,0.0887992,112590.0,112580.0,0.03477]
[1758706064107,1.2526792,112590.0,112580.0,0.0135]
[1758706064406,1.2526792,112590.0,112580.0,0.03477]
[1758706065012,1.2536792,112590.0,112580.0,0.03477]
[1758706065316,1.2536792,112590.0,112580.0,0.03577]
[1758706066209,1.2536792,112590.0,112580.0,0.1245771]
[1758706067412,1.2526792,112590.0,112580.0,0.1245771]
[1758706067615,1.2606792,112590.0,112580.0,0.1235771]
[1758706069115,1.17188,112590.0,112580.0,0.1235771]
[1758706069419,1.2606792,112590.0,112580.0,0.1235771]
[1758706071818,1.2606792,112590.0,112580.0,0.37328877]
[1758706077617,1.2606792,112590.0,112580.0,0.53265603]
[1758706078619,1.2606792,112590.0,112580.0,0.56414901]
[1758706080822,1.2606792,112590.0,112580.0,0.28294436]
[1758706081022,1.2606792,112590.0,112580.0,0.56414901]
[1758706081422,1.2596792,112590.0,112580.0,0.56414901]
[1758706081622,1.2536792,112590.0,112580.0,0.56614901]
[1758706083426,1.2536792,112590.0,112580.0,0.56514901]
[1758706084025,1.2536792,112590.0,112580.0,0.28394436]
[1758706084323,1.2536792,112590.0,112580.0,0.56514901]
[1758706085826,1.2536792,112590.0,112580.0,0.28394436]
[1758706086027,1.2536792,112590.0,112580.0,0.56514901]
[1758706088633,1.2536792,112590.0,112580.0,0.28394436]
[1758706088926,1.2536792,112590.0,112580.0,0.56514901]
[1758706089428,1.2536792,112590.0,112580.0,0.28394436]
[1758706089630,1.2536792,112590.0,112580.0,0.56514901]
[1758706094427,1.2536792,112590.0,112580.0,0.28394436]
[1758706094730,1.2536792,112590.0,112580.0,0.56514901]
[1758706098427,1.2536792,112590.0,112580.0,0.40578175]
[1758706101638,1.2536792,112590.0,112580.0,0.56514901]
[1758706104936,1.2536792,112590.0,112580.0,0.40578175]
[1758706106838,0.8928792,112590.0,112580.0,0.40578175]
[1758706107042,1.2536792,112590.0,112580.0,0.40578175]
[1758706111442,1.2536792,112590.0,112580.0,0.56514901]
[1758706112144,1.2536792,112590.0,112580.0,0.40578175]
[1758706121352,1.16488,112590.0,112580.0,0.1245771]
[1758706121653,1.16488,112590.0,112580.0,0.40578175]
[1758706122454,0.3618,112590.0,112580.0,1.0869864]
[1758706122661,0.001,112590.0,112580.0,1.0869864]
[1758706123246,0.001,112590.0,112580.0,0.80578175]
[1758706125549,0.001,112590.0,112580.0,0.5245771]
[1758706125754,0.001,112590.0,112580.0,1.0869864]
[1758706126045,0.001,112590.0,112580.0,0.80578175]
[1758706126958,0.3618,112590.0,112580.0,0.80578175]
[1758706128962,0.3618,112590.0,112580.0,0.96514901]
[1758706137164,0.3618,112590.0,112580.0,0.56514901]
[1758706137366,0.001,112590.0,112580.0,0.84635366]
[1758706137565,0.001,112590.0,112580.0,0.56514901]
[1758706137867,0.001,112590.0,112580.0,0.40578175]
[1758706140570,0.001,112590.0,112580.0,0.3745024]
[1758706141769,0.3618,112590.0,112580.0,0.53427947]
[1758706149078,0.001,112590.0,112580.0,0.53427947]
[1758706149277,0.3618,112590.0,112580.0,0.53427947]
[1758706152276,0.3618,112590.0,112580.0,0.3745024]
[1758706154380,0.3618,112590.0,112580.0,0.53436275]
[1758706160688,0.4505985,112590.0,112580.0,0.53436275]
[1758706164887,0.4505985,112590.0,112580.0,0.3745024]
[1758706166187,0.0897985,112590.0,112580.0,0.3745024]
[1758706166401,0.4505985,112590.0,112580.0,0.3745024]
[1758706169792,0.4495985,112590.0,112580.0,0.3785024]
[1758706170390,0.4495985,112590.0,112580.0,0.3795024]
[1758706172589,0.4495985,112590.0,112580.0,0.40320843]
[1758706174591,0.3608,112590.0,112580.0,0.40320843]
[1758706178897,1.2528306,112600.0,112590.0,0.1234785]
[1758706179092,0.80324,112600.0,112590.0,1.1762838]
[1758706179394,0.449584,112610.0,112600.0,0.1234706]
[1758706179597,0.449584,112610.0,112600.0,0.3733959]
[1758706179785,0.449584,112610.0,112600.0,0.39710193]
[1758706180501,0.457584,112610.0,112600.0,0.39710193]
[1758706181797,0.458584,112610.0,112600.0,0.39710193]
[1758706183788,0.3698,112610.0,112600.0,0.39710193]
[1758706185195,0.009,112610.0,112600.0,0.39710193]
[1758706187000,0.009,112610.0,112600.0,0.55699138]
[1758706187901,0.3608,112630.0,112620.0,0.1238548]
[1758706188094,0.8914842,112640.0,112630.0,0.1027069]
[1758706188300,1.6130842,112640.0,112630.0,0.3737722]
[1758706188601,1.6130842,112640.0,112630.0,0.14755293]
[1758706189799,1.6250842,112640.0,112630.0,0.14755293]
[1758706190103,0.7336,112640.0,112630.0,0.39747823]
[1758706190304,0.3728,112640.0,112630.0,0.39747823]
[1758706190704,0.3728,112640.0,112630.0,0.46989204]
[1758706191007,0.3748,112640.0,112630.0,0.46989204]
[1758706192207,0.3628,112640.0,112630.0,0.48689204]
[1758706192505,0.3608,112640.0,112630.0,0.48889204]
[1758706193509,1.2541168,112650.0,112640.0,0.1238393]
[1758706194206,1.2541168,112650.0,112640.0,0.14754533]
[1758706194707,1.2541168,112650.0,112640.0,0.14854533]
[1758706195110,1.2541168,112650.0,112640.0,0.15254533]
[1758706200706,1.53506619,112650.0,112640.0,0.43349472]
[1758706201307,1.2541168,112650.0,112640.0,0.43349472]
[1758706201512,1.53506619,112650.0,112640.0,0.43349472]
[1758706202012,1.2541168,112650.0,112640.0,0.43349472]
[1758706202311,1.16536,112650.0,112640.0,0.43349472]
[1758706202513,1.2541113,112650.0,112640.0,0.43349472]
[1758706203814,1.53506069,112650.0,112640.0,0.43349472]
[1758706204010,1.2541113,112650.0,112640.0,0.43349472]
[1758706206012,0.3608,112650.0,112640.0,0.43349472]
[1758706207812,1.2535091,112660.0,112650.0,0.1249514]
[1758706208013,1.2535091,112660.0,112650.0,0.40590079]
[1758706208609,1.2535091,112660.0,112650.0,0.42960682]
[1758706208814,1.53445849,112660.0,112650.0,0.42960682]
[1758706209321,1.53545849,112660.0,112650.0,0.42960682]
[1758706209720,1.53545849,112660.0,112650.0,0.14865743]
[1758706209922,1.53545849,112660.0,112650.0,0.42960682]
[1758706210620,1.2545091,112660.0,112650.0,0.42960682]
[1758706211213,1.2555091,112660.0,112650.0,0.42960682]
[1758706213220,1.53645849,112660.0,112650.0,0.42960682]
[1758706213619,1.2555091,112660.0,112650.0,0.42960682]
[1758706214221,1.2555091,112660.0,112650.0,0.14865743]
[1758706214419,1.2555091,112660.0,112650.0,0.42960682]
[1758706218221,1.53645849,112660.0,112650.0,0.42960682]
[1758706218422,1.53645849,112660.0,112650.0,0.14865743]
[1758706218621,1.53645849,112660.0,112650.0,0.42960682]
[1758706219121,1.49484055,112660.0,112650.0,0.42960682]
[1758706220023,1.49484055,112660.0,112650.0,0.14865743]